bitfinex-derivatives/quotes_ETHF0:USTF0_20241129
["timestamp","ask_amount","ask_price","bid_price","bid_amount"]
[1732852938085,2.46544554,3586.0,3585.7,2.32242413]
[1732852939285,2.18662554,3585.9,3585.7,2.32242413]
[1732852942482,2.46545554,3585.8,3585.7,1.2945]
[1732852943086,2.46877203,3585.8,3585.7,1.2945]
[1732852943284,0.27883,3585.8,3585.7,1.2945]
[1732852943677,2.19029443,3585.8,3585.7,1.2945]
[1732852944280,3.55898372,3585.9,3585.7,1.2945]
[1732852944888,0.27883,3585.8,3585.7,1.2945]
[1732852945190,0.27883,3585.8,3585.7,0.8763]
[1732852945380,0.72263,3585.8,3585.7,0.8763]
[1732852945982,0.4438,3585.8,3585.7,0.8763]
[1732852946688,0.72263,3585.8,3585.7,0.8763]
[1732852948088,3.28015372,3585.9,3585.7,0.8763]
[1732852948279,3.55898372,3585.9,3585.7,0.8763]
[1732852948890,2.19105666,3585.8,3585.7,0.8763]
[1732852949290,0.27883,3585.8,3585.7,0.8763]
[1732852949788,0.27883,3585.8,3585.5,44.0078]
[1732852949789,0.27884,3585.7,3585.5,44.0078]
[1732852949985,2.9119497,3585.7,3585.5,44.431]
[1732852950187,2.1912097,3585.6,3585.5,44.431]
[1732852951791,2.6331097,3585.7,3585.5,45.73777413]
[1732852951984,2.6331097,3585.7,3585.6,0.27885]
[1732852952490,2.6331097,3585.7,3585.5,45.73777413]
[1732852952985,2.6331097,3585.7,3585.5,45.45892413]
[1732852953189,2.6331097,3585.7,3585.5,45.73777413]
[1732852953584,2.6331097,3585.7,3585.5,45.45892413]
[1732852953781,2.1912097,3585.7,3585.5,45.45892413]
[1732852953979,2.1912097,3585.7,3585.5,45.73777413]
[1732852954186,2.1912097,3585.6,3585.5,45.45892413]
[1732852954380,2.1912097,3585.6,3585.5,44.431]
[1732852954892,2.1912097,3585.6,3585.5,44.70985]
[1732852955082,2.1912097,3585.6,3585.5,44.431]
[1732852955484,2.1912097,3585.6,3585.5,44.70985]
[1732852955987,2.1912097,3585.6,3585.5,44.431]
[1732852956192,2.1912097,3585.6,3585.5,48.80332274]
[1732852956593,2.1912097,3585.6,3585.5,44.431]
[1732852956894,2.1912097,3585.6,3585.5,49.08217274]
[1732852957294,3.28015372,3585.7,3585.5,49.08217274]
[1732852958197,4.3735383,3585.8,3585.6,4.65117274]
[1732852958491,4.3735383,3585.8,3585.6,5.67909687]
[1732852958692,4.3735383,3585.8,3585.6,5.40024687]
[1732852958889,4.3735383,3585.8,3585.6,1.02792413]
[1732852959089,4.3735383,3585.8,3585.6,5.40024687]
[1732852959488,4.3735383,3585.8,3585.6,1.02792413]
[1732852959684,4.3735383,3585.8,3585.6,5.40024687]
[1732852960085,4.3735383,3585.8,3585.6,5.67909687]
[1732852960485,4.3735383,3585.8,3585.6,4.37232274]
[1732852960694,4.3735383,3585.8,3585.5,50.11009687]
[1732852960898,4.3735383,3585.7,3585.5,49.83124687]
[1732852961787,4.3735383,3585.6,3585.5,49.83124687]
[1732852962893,4.3735383,3585.6,3585.5,45.45892413]
[1732852963091,4.3735383,3585.6,3585.5,3.2078]
[1732852964691,4.3735383,3585.6,3585.5,7.58012274]
[1732852965899,4.3735383,3585.6,3585.5,3.2078]
[1732852967300,4.3735383,3585.6,3585.5,7.58012274]
[1732852967495,4.3735383,3585.6,3585.5,3.2078]
[1732852967699,4.3735383,3585.6,3585.5,7.58012274]
[1732852968894,4.3735383,3585.6,3585.5,12.07897274]
[1732852969095,4.3735383,3585.7,3585.6,0.27885]
[1732852969300,4.3735383,3585.8,3585.7,0.27884]
[1732852969603,4.3735383,3585.8,3585.7,4.66701309]
[1732852970596,4.3735383,3585.8,3585.7,45.46701309]
[1732852971598,4.3735383,3585.8,3585.7,46.49493722]
[1732852972096,4.3735383,3585.8,3585.7,47.52096731]
[1732852972302,4.3735383,3585.9,3585.7,47.24212731]
[1732852972499,5.46692287,3586.1,3585.7,47.24212731]
[1732852972500,5.48835682,3586.1,3586.0,0.27882]
[1732852972696,5.48835682,3586.1,3586.0,1.30674413]
[1732852973494,5.48835682,3586.1,3586.0,1.02792413]
[1732852974207,5.48835682,3586.1,3585.8,5.23699935]
[1732852974401,0.27882,3585.9,3585.7,4.38799935]
[1732852974699,5.76741514,3585.9,3585.6,4.38799935]
[1732852975004,5.90189514,3585.8,3585.6,4.38799935]
[1732852975210,6.18073514,3585.8,3585.5,8.03939935]
[1732852975504,4.39105693,3585.6,3585.5,8.03939935]
[1732852975805,4.39099065,3585.6,3585.5,8.03939935]
[1732852976205,5.48859514,3585.7,3585.5,3.6514]
[1732852976503,0.4319,3585.6,3585.5,3.6514]
[1732852976702,0.4319,3585.6,3585.5,0.4436]
[1732852976703,5.92049514,3585.6,3585.5,0.4436]
[1732852977098,0.4319,3585.6,3585.5,0.4436]
[1732852977297,5.92049514,3585.6,3585.5,0.4436]
[1732852978101,0.4319,3585.6,3585.5,0.4436]
[1732852983803,4.82208984,3585.6,3585.5,0.4436]
[1732852983999,4.82207433,3585.6,3585.5,1.75037413]
[1732852984413,4.82207433,3585.6,3585.5,5.85952348]
[1732852985112,4.82207433,3585.6,3585.5,0.4436]
[1732852986106,0.4319,3585.6,3585.5,0.4436]
[1732852986715,4.82185583,3585.6,3585.5,0.4436]
[1732852987108,0.4319,3585.6,3585.5,0.4436]
[1732852988213,4.38987351,3585.6,3585.5,5.11044935]
[1732852988409,4.38987351,3585.7,3585.5,4.83159935]
[1732852988605,4.38987351,3585.7,3585.6,9.33007348]
[1732852989006,4.38987351,3585.8,3585.6,9.05122348]
[1732852989208,4.38987351,3585.8,3585.7,4.66683935]
[1732852989417,4.38987351,3585.9,3585.8,0.27883]
[1732852989610,4.38987351,3585.9,3585.8,1.30675413]
[1732852990013,4.38987351,3586.0,3585.8,5.69475348]
[1732852990212,4.38987351,3586.0,3585.9,0.4451]
[1732852991016,4.82007351,3586.0,3585.9,0.4451]
[1732852991208,0.4302,3586.0,3585.9,0.4451]
[1732852992012,0.70902,3586.0,3585.9,0.4451]
[1732852992309,0.70902,3586.0,3585.7,4.38799935]
[1732852992518,4.66794708,3585.9,3585.6,9.05122348]
[1732852992711,4.66794708,3585.9,3585.6,11.89122348]
[1732852992712,4.38911708,3585.8,3585.6,11.89122348]
[1732852993112,4.38911708,3585.8,3585.6,7.50322413]
[1732852993312,4.38911708,3585.7,3585.6,7.50322413]
[1732852993513,4.38911708,3585.8,3585.6,7.50322413]
[1732852993717,4.38911708,3585.8,3585.6,11.89122348]
[1732852993915,4.38911708,3585.7,3585.6,7.50322413]
[1732852994119,4.38911708,3585.8,3585.6,7.50322413]
[1732852994318,4.38911708,3585.7,3585.6,7.50322413]
[1732852995321,4.66795708,3585.7,3585.6,3.2078]
[1732852995522,4.38911708,3585.7,3585.6,3.2078]
[1732853003235,4.38911708,3585.7,3585.6,4.23572413]
[1732853003435,4.38911708,3585.7,3585.6,8.38457413]
[1732853005340,4.38911708,3585.9,3585.7,0.27884]
[1732853005543,4.38911708,3585.9,3585.8,1.02792413]
[1732853005841,4.38911708,3586.0,3585.8,5.69149493]
[1732853006141,4.38911708,3586.0,3585.9,0.8528]
[1732853006342,4.38911708,3586.0,3585.9,1.2832]
[1732853008843,4.38911708,3586.0,3585.9,1.56202]
[1732853009238,0.71099,3586.4,3585.9,1.56202]
[1732853009239,4.38911708,3586.1,3585.9,1.2832]
[1732853009536,4.38911708,3586.1,3585.9,1.56202]
[1732853009743,4.38911708,3586.1,3586.0,4.51454413]
[1732853009946,4.38911708,3586.2,3586.0,8.03572413]
[1732853010246,3.29088112,3586.1,3586.0,12.69928493]
[1732853011347,3.29088112,3586.2,3586.1,0.27881]
[1732853011535,3.29088112,3586.2,3586.1,1.30673413]
[1732853012547,0.82888112,3586.2,3586.1,8.57553413]
[1732853012849,0.8473,3586.9,3586.1,18.70358359]
[1732853012850,4.38911708,3586.9,3586.1,18.70358359]
[1732853013146,4.38911708,3587.1,3586.8,4.23572413]
[1732853013452,4.38911708,3587.3,3587.0,1.02792413]
[1732853013637,4.38911708,3587.3,3587.0,2.04792413]
[1732853014337,4.66783708,3587.3,3587.0,2.04792413]
[1732853015351,5.08936642,3587.4,3586.8,3.2078]
[1732853015542,4.66782708,3587.3,3586.8,4.23572413]
[1732853015737,0.445,3587.2,3586.8,4.23572413]
[1732853015942,0.4334,3587.1,3586.8,4.23572413]
[1732853016148,0.4334,3587.1,3586.8,4.51447413]
[1732853016845,0.4334,3587.1,3587.0,1.02792413]
[1732853019852,0.70024934,3587.4,3587.0,1.30666413]
[1732853020148,0.70024934,3587.4,3587.2,1.02792413]
[1732853021050,0.97895934,3587.4,3587.2,1.02792413]
[1732853023142,0.97895934,3587.4,3587.1,0.8295]
[1732853023349,0.97895934,3587.4,3587.1,5.75742413]
[1732853025557,0.70024934,3587.4,3587.1,6.03614413]
[1732853025958,0.70024934,3587.4,3587.1,5.75742413]
[1732853026557,0.97895934,3587.4,3587.3,1.02792413]
[1732853027560,0.70024934,3587.4,3587.3,1.02792413]
[1732853028149,0.4213,3587.4,3587.3,1.02792413]
[1732853028358,0.4213,3587.4,3587.3,1.30663413]
[1732853029161,0.4213,3587.4,3587.3,1.02792413]
[1732853032859,0.4213,3587.4,3587.3,1.30663413]
[1732853033160,1.3632,3588.0,3587.3,1.30663413]
[1732853033161,0.4282,3588.0,3587.3,8.06512413]
[1732853033463,0.4302,3587.9,3587.6,0.27869]
[1732853034355,0.4302,3587.9,3587.7,0.4179]
[1732853034557,0.4302,3587.9,3587.8,1.02792413]
[1732853040260,0.4302,3587.9,3587.8,1.47452413]
[1732853040463,0.4406,3588.1,3587.8,1.75320413]
[1732853040759,0.27880626,3588.5,3588.0,1.02792413]
[1732853040965,0.8574,3588.9,3588.6,0.27861]
[1732853041266,0.4294,3588.9,3588.8,1.02792413]
[1732853041469,0.4294,3588.9,3588.8,41.82792413]
[1732853041661,0.4294,3588.9,3588.8,48.52432413]
[1732853041869,0.4227,3589.2,3588.8,48.52432413]
[1732853042158,4.38911708,3589.4,3589.1,1.02792413]
[1732853042159,0.416,3589.4,3589.1,1.02792413]
[1732853042359,0.69455,3589.4,3589.3,1.02792413]
[1732853042560,0.416,3589.4,3589.3,1.02792413]
[1732853042967,0.69455,3589.4,3589.3,1.02792413]
[1732853043363,0.416,3589.4,3589.3,1.02792413]
[1732853043763,0.69455,3589.4,3589.3,1.02792413]
[1732853044564,0.416,3589.4,3589.3,1.02792413]
[1732853045766,0.27852,3589.8,3589.3,1.30648413]
[1732853046070,0.27880625,3590.3,3589.7,1.02792413]
[1732853046265,0.27880625,3590.3,3589.5,3.2078]
[1732853046266,0.4379,3590.2,3590.1,1.02792413]
[1732853046660,3.50199,3590.2,3590.1,1.02792413]
[1732853046862,3.2235,3590.2,3589.6,40.8]
[1732853047064,1.46552413,3590.1,3589.6,1.02792413]
[1732853047364,0.27854,3589.6,3589.4,1.02792413]
[1732853047568,0.27854,3589.6,3589.5,40.8]
[1732853047773,0.27853,3589.7,3589.4,1.02792413]
[1732853047974,0.27853,3589.7,3589.2,1.16547]
[1732853047975,0.4169,3589.6,3589.2,1.16547]
[1732853048164,0.4169,3589.6,3589.2,1.3016]
[1732853048371,0.69544,3589.6,3589.2,1.3016]
[1732853048567,0.4169,3589.6,3589.2,1.3016]
[1732853048874,0.27849,3590.2,3589.6,0.27853]
[1732853049168,0.4169,3590.3,3589.9,3.2078]
[1732853049375,0.2785,3590.0,3589.9,3.2078]
[1732853053675,0.2785,3590.0,3589.4,0.27855]
[1732853053676,0.27854,3589.5,3589.4,3.2078]
[1732853053967,0.27854,3589.5,3589.3,1.02792413]
[1732853054173,0.4444,3589.4,3589.3,1.02792413]
[1732853054574,0.72295,3589.4,3589.3,1.02792413]
[1732853054774,0.4444,3589.4,3589.3,1.02792413]
[1732853054971,0.72295,3589.4,3589.3,41.82792413]
[1732853055371,0.4444,3589.4,3589.3,41.82792413]
[1732853056471,0.72295,3589.4,3589.3,41.82792413]
[1732853058364,3.2308,3589.4,3588.2,2.924]
[1732853058569,3.2308,3589.4,3586.8,10.93080686]
[1732853058570,1.02792413,3588.9,3588.3,5.10732413]
[1732853058766,0.27862,3588.5,3588.3,5.10732413]
[1732853058965,0.27862,3588.5,3588.4,40.8]
[1732853059974,0.27866,3588.0,3587.7,3.2078]
[1732853060181,0.27867,3588.0,3587.8,0.4379]
[1732853060376,0.27867,3587.9,3587.8,0.4379]
[1732853061079,0.27867,3587.9,3587.8,41.2379]
[1732853061274,0.27867,3587.9,3587.8,40.8]
[1732853063078,0.27869,3587.6,3587.5,2.12117583]
[1732853063386,0.27869,3587.7,3587.5,2.12117583]
[1732853063572,0.4464,3588.2,3587.5,2.12117583]
[1732853063573,0.27869,3587.6,3587.5,2.12117583]
[1732853063768,0.4464,3588.2,3587.4,0.4379]
[1732853063974,0.27871,3587.4,3587.3,3.2078]
[1732853064176,3.05417583,3587.4,3585.9,4.38023904]
[1732853064372,0.27881,3586.1,3586.0,0.4372]
[1732853064978,0.27881,3586.1,3586.0,41.2372]
[1732853065483,0.27881,3586.1,3586.0,0.4372]
[1732853065979,0.27882,3585.9,3585.8,40.8]
[1732853066680,0.2788,3586.2,3585.8,40.8]
[1732853066881,0.27881,3586.1,3585.8,40.8]
[1732853067074,0.27882,3586.0,3585.8,40.8]
[1732853068476,0.27882,3585.9,3585.8,40.8]
[1732853070482,0.27882,3586.0,3585.8,40.8]
[1732853071178,0.27882,3585.9,3585.8,40.8]
[1732853072190,3.2078,3586.3,3585.8,40.8]
[1732853072377,0.27882,3586.0,3585.8,40.8]
[1732853074085,3.2078,3586.3,3585.8,40.8]
[1732853074280,0.27882,3585.9,3585.8,40.8]
[1732853078687,0.27882,3586.0,3585.8,40.8]
[1732853078985,3.48676181,3586.3,3585.8,40.8]
[1732853078986,0.27882,3585.9,3585.8,40.8]
[1732853079475,3.2078,3586.3,3585.8,44.55]
[1732853079681,0.2788,3586.2,3586.0,2.12117583]
[1732853079887,0.2788,3586.2,3586.1,0.423]
[1732853080086,0.2788,3586.2,3586.1,4.183]
[1732853082683,0.2788,3586.2,3586.1,0.423]
[1732853089003,0.4083,3586.6,3586.1,0.423]
[1732853089288,0.4083,3586.6,3586.2,0.4284]
[1732853089289,0.2788,3586.3,3586.2,0.4284]
[1732853090693,0.27882,3586.0,3585.9,0.4167]
[1732853090895,0.27882,3586.0,3585.9,3.7067]
[1732853091193,0.27882,3586.0,3585.9,0.4167]
[1732853092090,0.27882,3586.0,3585.9,0.8451]
[1732853093693,0.27882,3586.0,3585.9,0.4284]
[1732853093896,0.4351,3586.2,3585.8,40.8]
[1732853094096,0.4351,3586.2,3585.7,0.8666]
[1732853094391,0.27883,3585.8,3585.7,0.8666]
[1732853096204,0.27883,3585.8,3585.7,1.89349668]
[1732853100897,0.27883,3585.9,3585.7,1.89349668]
[1732853101102,0.27883,3585.8,3585.7,1.89349668]
[1732853101605,3.2078,3586.1,3585.7,42.69349668]
[1732853101797,0.27883,3585.9,3585.7,42.69349668]
[1732853102498,0.27878,3586.4,3585.7,46.83349668]
[1732853102704,0.27879,3586.4,3586.3,1.02689668]
[1732853103400,0.27883,3585.8,3585.7,42.69349668]
[1732853103704,3.2078,3586.1,3585.7,1.89349668]
[1732853103901,0.27883,3585.9,3585.7,1.89349668]
[1732853104594,0.4063,3586.0,3585.7,1.89349668]
[1732853104595,0.4063,3586.0,3585.7,2.17233668]
[1732853104799,0.68512,3586.0,3585.9,1.02689668]
[1732853105805,0.4063,3586.0,3585.9,1.02689668]
[1732853106208,0.68512,3586.0,3585.9,1.02689668]
[1732853106597,0.68512,3586.0,3585.7,0.8666]
[1732853106598,0.4063,3586.0,3585.7,0.8666]
[1732853106809,0.27883,3585.9,3585.7,0.8666]
[1732853107007,0.27883,3585.8,3585.7,0.8666]
[1732853107209,0.27883,3585.8,3585.7,5.23930274]
[1732853107710,0.4063,3586.0,3585.7,5.23930274]
[1732853107910,0.4063,3586.0,3585.8,1.02689668]
[1732853108206,0.27883,3585.9,3585.8,5.39959942]
[1732853108407,0.27883,3585.9,3585.8,1.02689668]
[1732853108609,3.06763,3585.9,3585.7,5.23930274]
[1732853108907,0.4063,3586.0,3585.7,5.23930274]
[1732853109114,0.27883,3585.9,3585.7,5.23930274]
[1732853109415,0.27883,3585.9,3585.8,4.37270274]
[1732853109610,0.27882,3585.9,3585.8,4.37270274]
[1732853109815,3.06762,3585.9,3585.8,4.37270274]
[1732853110216,6.34688891,3585.9,3585.8,5.67294461]
[1732853110515,3.27926891,3585.9,3585.8,6.97867129]
[1732853110813,0.4063,3586.0,3585.8,6.97867129]
[1732853110814,3.27926891,3586.0,3585.8,14.88889541]
[1732853111010,3.2078,3586.1,3586.0,0.27882]
[1732853111208,3.2078,3586.1,3586.0,58.16620411]
[1732853111409,3.27926891,3586.3,3586.0,51.30984129]
[1732853111609,3.27926891,3586.3,3586.2,1.02689668]
[1732853111916,3.27926891,3586.3,3586.2,6.6976636]
[1732853112209,3.27926891,3586.3,3586.2,4.38437816]
[1732853112415,0.27879,3586.4,3586.2,4.38437816]
[1732853112604,0.27879,3586.4,3586.3,0.8158]
[1732853112806,4.37235854,3586.5,3586.3,0.8158]
[1732853113005,0.27878,3586.4,3586.3,0.8158]
[1732853113204,4.37235854,3586.4,3586.1,4.79297816]
[1732853113405,3.56972871,3586.2,3586.1,4.79297816]
[1732853113609,4.65115854,3586.3,3586.1,4.79297816]
[1732853113809,4.65115854,3586.3,3586.1,0.4086]
[1732853114226,4.37235854,3586.2,3586.1,0.4086]
[1732853114919,4.37235854,3586.2,3586.1,0.68741]
[1732853115613,4.37235854,3586.3,3586.1,4.88741]
[1732853115822,4.37235854,3586.3,3586.1,4.6086]
[1732853116111,4.65115854,3586.3,3586.1,4.6086]
[1732853116316,4.37235854,3586.2,3586.1,0.4086]
[1732853116521,4.65115854,3586.2,3586.1,0.4086]
[1732853116718,5.06165854,3586.2,3586.1,0.4086]
[1732853116913,0.6893,3586.2,3586.1,0.4086]
[1732853117219,0.6893,3586.2,3585.9,46.00017816]
[1732853117419,3.29107171,3586.0,3585.9,46.00017816]
[1732853117719,3.29107171,3586.0,3585.9,46.27899816]
[1732853117917,4.38812706,3586.1,3585.9,0.8158]
[1732853118220,0.27883,3585.9,3585.6,5.25547816]
[1732853118421,3.29115676,3585.7,3585.6,5.69137816]
[1732853118614,3.29115676,3585.7,3585.6,5.97022816]
[1732853118915,3.29115676,3585.7,3585.6,5.69137816]
[1732853119621,3.29115676,3585.7,3585.6,5.97022816]
[1732853119919,3.29115676,3585.8,3585.6,6.98146592]
[1732853120120,3.29115676,3585.8,3585.7,4.66619057]
[1732853124626,3.29115676,3585.8,3585.7,4.38735057]
[1732853125223,4.38820902,3585.9,3585.6,5.69435057]
[1732853125423,3.29075679,3585.7,3585.6,5.69435057]
[1732853125725,4.80170902,3585.9,3585.6,5.69435057]
[1732853125726,3.29075679,3585.8,3585.6,5.69435057]
[1732853126023,3.29075679,3585.7,3585.6,5.69435057]
[1732853131031,3.56959679,3585.7,3585.6,5.69435057]
[1732853131628,3.56997908,3585.7,3585.6,5.69435057]
[1732853132119,0.27884,3585.7,3585.6,5.69435057]
[1732853132724,0.27884,3585.7,3585.6,4.38735057]
[1732853132927,4.38820902,3585.8,3585.5,4.38735057]
[1732853133130,3.29094192,3585.6,3585.5,4.38735057]
[1732853133829,0.27884,3585.7,3585.5,4.38735057]
[1732853134034,3.29094119,3585.6,3585.5,4.38735057]
[1732853134231,3.29094119,3585.6,3585.5,5.41433547]
[1732853136543,0.27885,3585.7,3585.5,5.41433547]
[1732853136725,3.29153887,3585.6,3585.5,5.41433547]
[1732853136930,3.57038887,3585.6,3585.5,5.41433547]
[1732853138132,3.29153887,3585.6,3585.5,5.41433547]
[1732853139338,0.27885,3585.6,3585.5,5.41433547]
[1732853139537,0.27885,3585.6,3585.5,4.38735057]
[1732853140329,0.27885,3585.5,3585.4,4.38735057]
[1732853140542,0.27885,3585.5,3585.4,1.92535057]
[1732853140834,0.27888,3585.2,3585.1,6.98910342]
[1732853141026,0.27888,3585.2,3585.1,12.60202304]
[1732853141438,0.423,3585.2,3585.1,12.60202304]
[1732853142736,3.291716,3585.4,3585.1,12.88090304]
[1732853142944,3.291716,3585.4,3585.3,1.0269849]
[1732853143437,3.570576,3585.4,3585.3,1.0269849]
[1732853143638,3.291716,3585.4,3585.3,1.0269849]
[1732853143837,3.291716,3585.4,3585.3,1.3058549]
[1732853144029,3.71490902,3586.2,3585.5,0.69714]
[1732853144233,5.46544818,3586.9,3586.8,0.27875]
[1732853144433,5.74444034,3587.1,3586.7,0.27876]
[1732853144934,0.27899216,3587.1,3586.7,0.27876]
[1732853145336,0.27899216,3587.1,3586.6,0.27876]
[1732853145527,0.55773216,3587.1,3586.4,9.78215849]
[1732853145832,0.55773216,3587.1,3586.4,13.46215849]
[1732853146234,0.55773216,3587.1,3586.5,2.12231761]
[1732853146737,0.27899216,3587.1,3586.5,2.12231761]
[1732853146945,0.27899216,3587.1,3586.6,0.27876]
[1732853147134,0.55772216,3587.1,3586.6,1.57006]
[1732853148034,0.27899216,3587.1,3586.6,1.57007]
[1732853149641,0.55772216,3587.1,3586.6,1.57007]
[1732853150035,0.27899216,3587.1,3586.6,1.2913]
[1732853150231,0.27874,3587.0,3586.6,1.2913]
[1732853152438,0.27874,3587.0,3586.6,1.57007]
[1732853152836,0.27874,3587.0,3586.6,1.2913]
[1732853153438,0.27874,3587.0,3586.6,1.57007]
[1732853156139,0.27899216,3587.1,3586.6,1.2913]
[1732853156346,0.27876,3586.8,3586.6,1.2913]
[1732853156842,0.27899216,3587.1,3586.6,0.4273]
[1732853157044,0.27876,3586.8,3586.6,0.4273]
[1732853157746,0.27899216,3587.1,3586.6,0.4273]
[1732853158041,0.27876,3586.7,3586.4,3.48658]
[1732853158440,0.27899216,3587.1,3586.4,3.2078]
[1732853158639,0.27877,3586.6,3586.4,3.2078]
[1732853158844,0.27875,3586.9,3586.5,0.27877]
[1732853159048,0.27875,3586.9,3586.5,0.27878]
[1732853159347,0.27875,3586.8,3586.5,0.27878]
[1732853159540,0.27899216,3587.1,3586.4,3.2078]
[1732853159742,0.27876,3586.8,3586.5,0.27878]
[1732853159935,0.27876,3586.8,3586.4,3.48658]
[1732853160147,0.27899216,3587.1,3586.4,3.2078]
[1732853160148,0.27876,3586.7,3586.4,3.2078]
[1732853160841,0.27899216,3587.1,3586.4,3.2078]
[1732853161036,0.27876,3586.7,3586.4,3.2078]
[1732853161444,0.27899216,3587.1,3586.4,3.2078]
[1732853161845,0.27874,3587.0,3586.5,0.27878]
[1732853162149,0.27899216,3587.1,3586.5,0.27877]
[1732853162445,9.84046118,3588.6,3586.8,3.2078]
[1732853162446,5.46544818,3588.1,3586.8,3.2078]
[1732853162648,0.27866,3588.0,3587.5,0.2787]
[1732853162949,0.27866,3588.0,3587.2,5.33011761]
[1732853162950,0.27867,3588.0,3587.6,0.8852]
[1732853163339,0.27866,3588.1,3587.6,1.16389]
[1732853163538,3.2078,3588.2,3587.6,0.8852]
[1732853163742,0.27867,3587.9,3587.6,0.8852]
[1732853164555,3.2078,3588.2,3587.6,0.8852]
[1732853164745,0.27866,3588.0,3587.6,1.16389]
[1732853164945,0.27866,3588.0,3587.7,0.4157]
[1732853165347,3.2078,3588.2,3587.7,0.4157]
[1732853165649,0.27867,3587.9,3587.7,0.4157]
[1732853169248,0.27882492,3588.0,3587.6,0.8852]
[1732853169447,3.2078,3587.8,3586.8,0.68325]
[1732853169653,0.27871,3587.4,3587.0,0.27874]
[1732853169857,0.27871,3587.4,3587.0,3.61]
[1732853170153,0.27872,3587.3,3587.1,1.02606843]
[1732853170949,0.27874,3587.1,3586.9,1.43146843]
[1732853171253,0.27874,3587.0,3586.9,0.4054]
[1732853171955,1.02606843,3587.2,3586.6,0.4399]
[1732853172251,0.27877,3586.6,3586.3,0.8449]
[1732853172456,0.27877,3586.6,3586.3,4.9149]
[1732853173152,3.2078,3587.0,3586.3,4.9149]
[1732853173353,0.27875,3586.9,3586.5,0.27878]
[1732853173550,3.2078,3587.0,3586.6,2.12289624]
[1732853173857,3.2078,3587.0,3586.7,0.4323]
[1732853174452,3.48654,3587.0,3586.7,0.4323]
[1732853175152,0.27875,3586.9,3586.7,0.4323]
[1732853175359,3.48654,3587.0,3586.7,0.4323]
[1732853175558,3.2078,3587.0,3586.7,0.4323]
[1732853176257,3.48654,3587.0,3586.7,0.4323]
[1732853176456,3.2078,3587.0,3586.7,0.71106]
[1732853176762,3.2078,3587.0,3586.7,0.4323]
[1732853178857,3.48654,3587.0,3586.7,0.4323]
[1732853180161,3.2078,3587.0,3586.7,0.4323]
[1732853180559,3.2078,3587.0,3586.7,0.71106]
[1732853180953,3.2078,3587.0,3586.9,0.27875]
[1732853181664,0.27887624,3587.2,3586.8,0.27875]
[1732853181855,0.2787,3587.5,3587.0,0.27874]
[1732853182055,0.2787,3587.5,3587.1,0.4451]
[1732853182257,1.7588,3587.8,3587.1,0.4451]
[1732853182556,1.7588,3587.8,3586.7,0.71106]
[1732853182557,0.27873,3587.1,3586.7,0.71106]
[1732853182757,0.27873,3587.1,3586.7,0.8774]
[1732853183154,3.2078,3587.5,3586.9,0.27874]
[1732853183356,3.2078,3587.5,3587.2,0.27872]
[1732853183561,0.27869,3587.7,3587.2,0.27872]
[1732853183757,0.27869,3587.7,3587.3,0.4187]
[1732853183959,0.27869,3587.7,3587.4,0.412]
[1732853184464,0.8308,3587.8,3587.4,0.412]
[1732853184660,0.27869,3587.6,3587.4,0.412]
[1732853186462,0.8308,3587.8,3587.4,0.412]
[1732853186866,1.10948,3587.8,3587.4,0.412]
[1732853187065,0.27869,3587.7,3587.4,0.412]
[1732853189468,0.27869,3587.6,3587.4,0.412]
[1732853189965,0.2787,3587.6,3587.4,0.412]
[1732853190155,0.2787,3587.5,3587.4,0.412]
[1732853190359,0.8308,3587.8,3587.3,0.4187]
[1732853190663,0.27871,3587.4,3587.3,0.4187]
[1732853190965,0.8308,3587.8,3587.0,0.8625]
[1732853190966,0.2787,3587.5,3587.0,0.8625]
[1732853191167,0.72692,3587.3,3587.0,1.2225]
[1732853191574,0.4482,3587.3,3587.0,1.50124]
[1732853192065,0.72691,3587.3,3587.0,1.2225]
[1732853192660,0.27873,3587.1,3586.7,0.4089]
[1732853192861,0.4482,3587.3,3586.7,0.68766]
[1732853192862,0.27872,3587.2,3586.7,0.68766]
[1732853193067,0.4482,3587.3,3586.7,0.4089]
[1732853193266,0.27873,3587.2,3586.8,0.27875]
[1732853193565,0.72692,3587.3,3586.9,0.27874]
[1732853193958,0.4482,3587.3,3586.7,0.4089]
[1732853194162,0.27872,3587.2,3586.7,4.77766]
[1732853194865,0.4482,3587.3,3586.7,4.4989]
[1732853195065,0.27873,3587.1,3586.7,4.4989]
[1732853195362,0.27875,3586.8,3586.7,4.4989]
[1732853195568,3.2078,3587.2,3586.7,0.4089]
[1732853195569,0.27875,3586.9,3586.7,0.4089]
[1732853195762,0.27875,3586.8,3586.7,0.4089]
[1732853195968,0.68445,3586.8,3586.7,0.4089]
[1732853200971,0.27877,3586.6,3586.5,1.88731301]
[1732853206270,3.2078,3586.6,3586.3,0.407]
[1732853206475,0.27882,3585.9,3585.8,6.57435849]
[1732853206669,3.2078,3586.6,3585.7,7.87875849]
[1732853206670,1.02631301,3586.0,3585.7,7.87875849]
[1732853206872,4.23411301,3586.2,3585.7,1.3044]
[1732853207067,0.4443,3585.9,3585.8,0.27883]
[1732853207267,0.4443,3585.9,3585.7,2.60954301]
[1732853207471,0.4443,3585.9,3585.7,2.33071301]
[1732853207669,0.4443,3585.9,3585.7,1.3044]
[1732853207670,0.72313,3585.9,3585.7,1.3044]
[1732853207875,0.4443,3585.9,3585.7,1.3044]
[1732853208471,0.72312,3585.9,3585.7,1.3044]
[1732853208671,0.4443,3585.9,3585.7,2.60955301]
[1732853208880,0.4443,3585.9,3585.7,2.33071301]
[1732853210476,0.27883,3585.8,3585.7,1.3044]
[1732853211481,0.27883,3585.8,3585.7,2.33071301]
[1732853212577,0.72313,3585.9,3585.7,2.33071301]
[1732853212781,0.4443,3585.9,3585.7,2.33071301]
[1732853212978,0.27883,3585.8,3585.7,2.33071301]
[1732853213677,0.4443,3585.9,3585.3,10.8084715]
[1732853213882,0.27885,3585.5,3585.4,0.4326]
[1732853214379,0.27885,3585.5,3585.3,1.02631301]
[1732853214380,1.02631301,3585.6,3585.2,0.8342]
[1732853214585,0.27887,3585.3,3585.2,0.8342]
[1732853216579,0.27889,3585.1,3585.0,0.0104]
[1732853217574,4.64661301,3585.4,3584.9,1.02631301]